fUSD/lending_fUSD_20240813
["ID","MTS","AMOUNT","RATE_DAILY","PERIOD"]
[334748618,1723535451116,-500.0,0.00013729,2]
[334748619,1723535451125,-500.0,0.00013729,2]
[334748620,1723535451135,-534.32,0.00013729,2]
[334748621,1723535451144,-500.0,0.00013729,2]
[334748622,1723535451153,-500.0,0.00013729,2]
[334748623,1723535451162,-500.0,0.00013729,2]
[334748624,1723535451172,-524.33,0.00013729,2]
[334748625,1723535451181,-500.0,0.00013729,2]
[334748626,1723535451190,-500.0,0.00013729,2]
[334748627,1723535451199,-500.0,0.00013729,2]
[334748628,1723535451207,-682.76,0.00013729,2]
[334748629,1723535451216,-500.0,0.00013729,2]
[334748630,1723535451226,-500.0,0.00013729,2]
[334748631,1723535451244,-511.43282124,0.00013729,2]
[334748632,1723535451254,-500.0,0.00013729,2]
[334748633,1723535451263,-507.96922367,0.00013729,2]
[334748634,1723535451272,-1600.18,0.00013729,2]
[334748635,1723535451281,-2553.18,0.00013729,2]
[334748636,1723535451290,-510.57010753,0.00013729,2]
[334748637,1723535451299,-500.0,0.00013729,2]
[334748638,1723535451308,-500.0,0.00013729,2]
[334748639,1723535451318,-500.0,0.00013729,2]
[334748640,1723535451327,-500.0,0.00013729,2]
[334748641,1723535451337,-500.0,0.00013729,2]
[334748642,1723535451346,-526.58453533,0.00013729,2]
[334748643,1723535451355,-500.0,0.00013729,2]
[334748644,1723535451365,-209.42274219,0.00013729,2]
[334748645,1723535451374,-500.0,0.00013729,2]
[334748646,1723535451383,-500.0,0.00013729,2]
[334748647,1723535451392,-500.0,0.00013729,2]
[334748648,1723535451401,-500.0,0.00013729,2]
[334748649,1723535451411,-500.0,0.00013729,2]
[334748650,1723535451420,-549.82,0.00013729,2]
[334748651,1723535451429,-500.0,0.00013729,2]
[334748652,1723535451438,-705.6,0.00013729,2]
[334748653,1723535451448,-500.0,0.00013729,2]
[334748654,1723535451457,-500.0,0.00013729,2]
[334748655,1723535451467,-500.0,0.00013729,2]
[334748656,1723535451477,-500.0,0.00013729,2]
[334748657,1723535451486,-500.0,0.00013729,2]
[334748658,1723535451495,-500.0,0.00013729,2]
[334748659,1723535451504,-287.83810993,0.00013729,2]
[334748660,1723535451513,-500.0,0.00013729,2]
[334748661,1723535451522,-500.0,0.00013729,2]
[334748662,1723535451533,-500.0,0.00013729,2]
[334748663,1723535451543,-500.0,0.00013729,2]
[334748664,1723535451553,-500.0,0.00013729,2]
[334748665,1723535451562,-500.0,0.00013729,2]
[334748666,1723535451571,-500.0,0.00013729,2]
[334748667,1723535451581,-500.0,0.00013729,2]
[334748668,1723535451590,-500.0,0.00013729,2]
[334748669,1723535451599,-500.0,0.00013729,2]
[334748670,1723535451609,-500.0,0.00013729,2]
[334748671,1723535451619,-500.0,0.00013729,2]
[334748672,1723535451632,-500.0,0.00013729,2]
[334748673,1723535451642,-500.0,0.00013729,2]
[334748674,1723535451651,-500.0,0.00013729,2]
[334748675,1723535451662,-500.0,0.00013729,2]
[334748676,1723535451671,-500.0,0.00013729,2]
[334748677,1723535451680,-500.0,0.00013729,2]
[334748678,1723535451691,-500.0,0.00013729,2]
[334748679,1723535451701,-500.0,0.00013729,2]
[334748680,1723535451710,-500.0,0.00013729,2]
[334748681,1723535451719,-500.0,0.00013729,2]
[334748682,1723535451730,-500.0,0.00013729,2]
[334748683,1723535451740,-500.0,0.00013729,2]
[334748684,1723535451748,-500.0,0.00013729,2]
[334748685,1723535451757,-500.0,0.00013729,2]
[334748686,1723535451769,-500.0,0.00013729,2]
[334748687,1723535451778,-500.0,0.00013729,2]
[334748688,1723535451788,-500.0,0.00013729,2]
[334748689,1723535451799,-500.0,0.00013729,2]
[334748690,1723535451810,-500.0,0.00013729,2]
[334748691,1723535451819,-500.0,0.00013729,2]
[334748692,1723535451828,-500.0,0.00013729,2]
[334748693,1723535451838,-500.0,0.00013729,2]
[334748694,1723535451847,-500.0,0.00013729,2]
[334748695,1723535451856,-500.0,0.00013729,2]
[334748696,1723535451865,-500.0,0.00013729,2]
[334748697,1723535451874,-500.0,0.00013729,2]
[334748698,1723535451883,-500.0,0.00013729,2]
[334748699,1723535451892,-500.0,0.00013729,2]
[334748700,1723535451901,-500.0,0.00013729,2]
[334748701,1723535451910,-508.78386306,0.00013729,2]
[334748702,1723535451919,-500.0,0.00013729,2]
[334748703,1723535451928,-507.9798771,0.00013729,2]
[334748704,1723535451937,-500.0,0.00013729,2]
[334748705,1723535451947,-500.0,0.00013729,2]
[334748706,1723535451957,-500.0,0.00013729,2]
[334748707,1723535451966,-500.0,0.00013729,2]
[334748708,1723535451975,-500.0,0.00013729,2]
[334748709,1723535451985,-500.0,0.00013729,2]
[334748710,1723535451994,-504.44601975,0.00013729,2]
[334748711,1723535452006,-500.0,0.00013729,2]
[334748712,1723535452015,-500.0,0.00013729,2]
[334748713,1723535452025,-500.0,0.00013729,2]
[334748714,1723535452035,-500.0,0.00013729,2]
[334748715,1723535452046,-500.0,0.00013729,2]
[334748716,1723535452055,-500.0,0.00013729,2]
[334748717,1723535452064,-500.0,0.00013729,2]
[334748718,1723535452072,-500.0,0.00013729,2]
[334748719,1723535452082,-803.87,0.00013729,2]
[334748720,1723535452091,-500.0,0.00013729,2]
[334748721,1723535452099,-500.0,0.00013729,2]
[334748722,1723535452109,-500.0,0.00013729,2]
[334748723,1723535452118,-500.0,0.00013729,2]
[334748724,1723535452127,-500.0,0.00013729,2]
[334748725,1723535452137,-508.6110111,0.00013729,2]
[334748726,1723535452146,-514.63754897,0.00013729,2]
[334748727,1723535452156,-500.0,0.00013729,2]
[334748728,1723535452165,-500.0,0.00013729,2]
[334748729,1723535452174,-500.0,0.00013729,2]
[334748730,1723535452184,-500.0,0.00013729,2]
[334748731,1723535452193,-500.0,0.00013729,2]
[334748732,1723535452202,-334.64869935,0.00013773,2]
[334748733,1723535452212,-1292.16770937,0.00013796,2]
[334748734,1723535452221,-500.0,0.00013799,2]
[334748735,1723535452232,-500.0,0.00013799,2]
[334748736,1723535452242,-1863.44,0.00013799,2]
[334748737,1723535452251,-505.22585172,0.00013799,2]
[334748738,1723535452261,-500.0,0.00013799,2]
[334748739,1723535452270,-508.18481911,0.00013799,2]
[334748740,1723535452279,-500.0,0.00013799,2]
[334748741,1723535452289,-500.0,0.00013799,2]
[334748742,1723535452298,-500.0,0.00013799,2]
[334748743,1723535452307,-500.0,0.00013799,2]
[334748744,1723535452317,-500.0,0.00013799,2]
[334748745,1723535452326,-500.0,0.00013799,2]
[334748746,1723535452337,-502.52708242,0.00013799,2]
[334748747,1723535452346,-512.97057693,0.00013799,2]
[334748748,1723535452355,-500.0,0.00013799,2]
[334748749,1723535452365,-500.0,0.00013799,2]
[334748750,1723535452374,-500.0,0.00013799,2]
[334748751,1723535452383,-500.0,0.00013799,2]
[334748752,1723535452392,-502.2071122,0.00013799,2]
[334748753,1723535452402,-503.2833915,0.00013799,2]
[334748754,1723535452411,-500.0,0.00013799,2]
[334748755,1723535452420,-500.0,0.00013799,2]
[334748756,1723535452429,-502.10563887,0.00013799,2]
[334748757,1723535452438,-500.0,0.00013799,2]
[334748758,1723535452447,-500.0,0.00013799,2]
[334748759,1723535452457,-505.42846975,0.00013799,2]
[334748760,1723535452467,-502.82343828,0.00013799,2]
[334748761,1723535452477,-150.0,0.00013799,2]
[334748762,1723535452487,-500.0,0.00013799,2]
[334748763,1723535452496,-502.53073221,0.00013799,2]
[334748764,1723535452505,-503.83191372,0.00013799,2]
[334748765,1723535452515,-1155.62,0.00013799,2]
[334748766,1723535452524,-500.0,0.00013799,2]
[334748767,1723535452537,-503.358342,0.00013799,2]
[334748768,1723535452547,-500.0,0.00013799,2]
[334748769,1723535452556,-500.0,0.00013799,2]
[334748770,1723535452565,-507.76537333,0.00013799,2]
[334748771,1723535452575,-505.3325485,0.00013799,2]
[334748772,1723535452584,-714.2,0.00013799,2]
[334748773,1723535452593,-310.9686169,0.00013799,2]
[334748774,1723535452780,-1241.0,0.00013799,2]
[334748775,1723535452790,-503.79843457,0.00013799,2]
[334748776,1723535452800,-504.21436266,0.00013799,2]
[334748777,1723535452809,-500.0,0.00013799,2]
[334748778,1723535452818,-500.0,0.00013799,2]
[334748779,1723535452827,-755.25,0.00013799,2]
[334748780,1723535452837,-502.64478512,0.00013799,2]
[334748781,1723535452846,-791.16,0.00013799,2]
[334748782,1723535452856,-500.0,0.00013799,2]
[334748783,1723535452865,-500.0,0.00013799,2]
[334748784,1723535452875,-1099.51,0.00013799,2]
[334748785,1723535452885,-500.0,0.00013799,2]
[334748786,1723535452895,-500.0,0.00013799,2]
[334748787,1723535452905,-500.0,0.00013799,2]
[334748788,1723535452914,-500.0,0.00013799,2]
[334748789,1723535452923,-500.0,0.00013799,2]
[334748790,1723535452933,-946.68,0.00013799,2]
[334748791,1723535452942,-500.0,0.00013799,2]
[334748792,1723535452951,-500.0,0.00013799,2]
[334748793,1723535452961,-500.0,0.00013799,2]
[334748794,1723535452970,-508.3238562,0.00013799,2]
[334748795,1723535452980,-1359.34,0.00013799,2]
[334748796,1723535452990,-500.0,0.00013799,2]
[334748797,1723535452999,-500.0,0.00013799,2]
[334748798,1723535453009,-500.0,0.00013799,2]
[334748799,1723535453018,-505.55052601,0.00013799,2]
[334748800,1723535453027,-1743.71,0.00013799,2]
[334748801,1723535453036,-1023.06,0.00013799,2]
[334748802,1723535453046,-500.0,0.00013799,2]
[334748803,1723535453055,-500.0,0.00013799,2]
[334748804,1723535453064,-778.62,0.00013799,2]
[334748805,1723535453074,-507.17834226,0.00013799,2]
[334748806,1723535453083,-509.03986031,0.00013799,2]
[334748807,1723535453092,-1760.09,0.00013799,2]
[334748808,1723535453105,-500.0,0.00013799,2]
[334748809,1723535453114,-500.0,0.00013799,2]
[334748810,1723535453124,-500.0,0.00013799,2]
[334748811,1723535453134,-500.0,0.00013799,2]
[334748812,1723535453144,-500.0,0.00013799,2]
[334748813,1723535453154,-500.0,0.00013799,2]
[334748814,1723535453163,-1230.55,0.00013799,2]
[334748815,1723535453173,-537.47,0.00013799,2]
[334748816,1723535453183,-500.0,0.00013799,2]
[334748817,1723535453192,-1688.57,0.00013799,2]
[334748818,1723535453203,-1001.08,0.00013799,2]
[334748819,1723535453212,-828.014967,0.00013799,2]
[334748820,1723535453222,-435.949083,0.00013799,2]
[334748821,1723535453231,-500.0,0.00013799,2]
[334748822,1723535453241,-500.0,0.00013799,2]
[334748823,1723535453251,-28588.8833,0.00013799,2]
[334748824,1723535453261,-21831.704954,0.00013799,2]
[334748825,1723535453271,-500.0,0.00013799,2]
[334748826,1723535453281,-500.0,0.00013799,2]
[334748827,1723535453291,-500.0,0.00013799,2]
[334748828,1723535453301,-500.0,0.00013799,2]
[334748829,1723535453310,-6177.95,0.00013799,2]
[334748830,1723535453320,-500.0,0.00013799,2]
[334748831,1723535453329,-4092.104095,0.00013799,2]
[334748832,1723535453338,-500.0,0.00013799,2]
[334748833,1723535453348,-500.0,0.00013799,2]
[334748834,1723535453357,-2922.39,0.00013799,2]
[334748835,1723535453367,-151.0,0.00013799,2]
[334748836,1723535453376,-500.0,0.00013799,2]
[334748837,1723535453386,-500.0,0.00013799,2]
[334748838,1723535453395,-500.0,0.00013799,2]
[334748839,1723535453405,-179.31540056,0.00013799,2]
[334748840,1723535453415,-1300.36,0.00013799,2]
[334748841,1723535453426,-171.67979106,0.00013799,2]
[334748842,1723535453436,-502.75581721,0.00013799,2]
[334748843,1723535453445,-500.0,0.00013799,2]
[334748844,1723535453455,-500.0,0.00013799,2]
[334748845,1723535453464,-609.65,0.00013799,2]
[334748846,1723535453473,-523.35,0.00013799,2]
[334748847,1723535453482,-1411.68,0.00013799,2]
[334748848,1723535453491,-500.0,0.00013799,2]
[334748849,1723535453501,-500.0,0.00013799,2]
[334748850,1723535453510,-500.0,0.00013799,2]
[334748851,1723535453520,-500.0,0.00013799,2]
[334748852,1723535453529,-504.90072479,0.00013799,2]
[334748853,1723535453542,-500.0,0.00013799,2]
[334748854,1723535453551,-1209.11,0.00013799,2]
[334748855,1723535453561,-518.03,0.00013799,2]
[334748856,1723535453571,-1085.25,0.00013799,2]
[334748857,1723535453582,-500.0,0.00013799,2]
[334748858,1723535453591,-500.0,0.00013799,2]
[334748859,1723535453600,-991.7,0.00013799,2]
[334748860,1723535453611,-500.0,0.00013799,2]
[334748861,1723535453620,-507.82,0.00013799,2]
[334748862,1723535453629,-500.0,0.00013799,2]
[334748863,1723535453638,-500.0,0.00013799,2]
[334748864,1723535453647,-500.0,0.00013799,2]
[334748865,1723535453656,-500.0,0.00013799,2]
[334748866,1723535453666,-500.0,0.00013799,2]
[334748867,1723535453675,-337.7368558,0.00013799,2]
[334748868,1723535453684,-500.0,0.00013799,2]
[334748869,1723535453693,-500.0,0.00013799,2]
[334748870,1723535453702,-686.92,0.00013799,2]
[334748871,1723535453711,-500.0,0.00013799,2]
[334748872,1723535453720,-500.0,0.00013799,2]
[334748873,1723535453730,-2622.01,0.00013799,2]
[334748874,1723535453739,-500.0,0.00013799,2]
[334748875,1723535453748,-551.73,0.00013799,2]
[334748876,1723535453758,-500.0,0.00013799,2]
[334748877,1723535453767,-500.0,0.00013799,2]
[334748878,1723535453776,-535.8257417,0.00013799,2]
[334748879,1723535453785,-504.3319712,0.00013799,2]
[334748880,1723535453795,-500.0,0.00013799,2]
[334748881,1723535453804,-500.0,0.00013799,2]
[334748882,1723535453813,-522.90214327,0.00013799,2]
[334748883,1723535453822,-1670.97,0.00013799,2]
[334748884,1723535453831,-670.23,0.00013799,2]
[334748885,1723535453840,-500.0,0.00013799,2]
[334748886,1723535453849,-500.0,0.00013799,2]
[334748887,1723535453859,-3541.36,0.00013799,2]
[334748888,1723535453868,-500.0,0.00013799,2]
[334748889,1723535453877,-507.96895435,0.00013799,2]
[334748890,1723535453886,-500.0,0.00013799,2]
[334748891,1723535453896,-500.0,0.00013799,2]
[334748892,1723535453905,-500.0,0.00013799,2]
[334748893,1723535453914,-500.0,0.00013799,2]
[334748894,1723535453923,-500.0,0.00013799,2]
[334748895,1723535453932,-500.0,0.00013799,2]
[334748896,1723535453941,-1085.98,0.00013799,2]
[334748897,1723535453952,-152.836204,0.00013799,2]
[334748898,1723535453963,-500.0,0.00013799,2]
[334748899,1723535453972,-500.0,0.00013799,2]
[334748900,1723535453982,-2167.9,0.00013799,2]
[334748901,1723535453991,-500.0,0.00013799,2]
[334748902,1723535454000,-500.0,0.00013799,2]
[334748903,1723535454009,-500.0,0.00013799,2]
[334748904,1723535454019,-500.0,0.00013799,2]
[334748905,1723535454028,-1180.27,0.00013799,2]
[334748906,1723535454037,-500.0,0.00013799,2]
[334748907,1723535454046,-500.0,0.00013799,2]
[334748908,1723535454057,-2066.64,0.00013799,2]
[334748909,1723535454066,-547.87854217,0.00013799,2]
[334748910,1723535454076,-913.4,0.00013799,2]
[334748911,1723535454085,-500.0,0.00013799,2]
[334748912,1723535454095,-1756.06,0.00013799,2]
[334748913,1723535454104,-205.74487492,0.00013799,2]
[334748914,1723535454114,-399.4440696,0.00013799,2]
[334748915,1723535454123,-500.0,0.00013799,2]
[334748916,1723535454132,-500.0,0.00013799,2]
[334748917,1723535454141,-610.16,0.00013799,2]
[334748918,1723535454150,-3108.3,0.00013799,2]
[334748919,1723535454159,-4710.01,0.00013799,2]
[334748920,1723535454168,-500.0,0.00013799,2]
[334748921,1723535454177,-1586.08,0.00013799,2]
[334748922,1723535454186,-156.21418445,0.00013799,2]
[334748923,1723535454196,-500.0,0.00013799,2]
[334748924,1723535454205,-500.0,0.00013799,2]
[334748925,1723535454215,-500.0,0.00013799,2]
[334748926,1723535454225,-500.0,0.00013799,2]
[334748927,1723535454235,-502.62432724,0.00013799,2]
[334748928,1723535454245,-627.26241648,0.00013799,2]
[334748929,1723535454255,-842.93,0.00013799,2]
[334748930,1723535454264,-500.84,0.00013799,2]
[334748931,1723535454273,-500.0,0.00013799,2]
[334748932,1723535454283,-500.0,0.00013799,2]
[334748933,1723535454292,-934.19,0.00013799,2]
[334748934,1723535454301,-500.0,0.00013799,2]
[334748935,1723535454310,-4812.55,0.00013799,2]
[334748936,1723535454319,-258.01979551,0.00013799,2]
[334748937,1723535454330,-1000.0,0.00013799,2]
[334748938,1723535454339,-500.0,0.00013799,2]
[334748939,1723535454349,-500.0,0.00013799,2]
[334748940,1723535454358,-605.96,0.00013799,2]
[334748941,1723535454367,-500.0,0.00013799,2]
[334748942,1723535454376,-755.9,0.00013799,2]
[334748943,1723535454386,-1219.63,0.00013799,2]
[334748944,1723535454395,-500.0,0.00013799,2]
[334748945,1723535454404,-500.0,0.00013799,2]
[334748946,1723535454414,-889.59,0.00013799,2]
[334748947,1723535454423,-2146.37,0.00013799,2]
[334748948,1723535454432,-521.65,0.00013799,2]
[334748949,1723535454441,-500.0,0.00013799,2]
[334748950,1723535454453,-2584.53,0.00013799,2]
[334748951,1723535454463,-2680.19657935,0.00013799,2]
[334748952,1723535454473,-500.0,0.00013799,2]
[334748953,1723535454483,-556.87821279,0.00013799,2]
[334748954,1723535454491,-500.0,0.00013799,2]
[334748955,1723535454501,-3205.28,0.00013799,2]
[334748956,1723535454511,-500.0,0.00013799,2]
[334748957,1723535454522,-325.92341101,0.00013799,2]
[334748958,1723535454537,-500.0,0.00013799,2]
[334748959,1723535454547,-500.0,0.00013799,2]
[334748960,1723535454556,-500.0,0.00013799,2]
[334748961,1723535454565,-500.0,0.00013799,2]
[334748962,1723535454574,-690.9,0.00013799,2]
[334748963,1723535454583,-645.82,0.00013799,2]
[334748964,1723535454592,-500.0,0.00013799,2]
[334748965,1723535454602,-500.0,0.00013799,2]
[334748966,1723535454611,-4824.32,0.00013799,2]
[334748967,1723535454620,-2092.45,0.00013799,2]
[334748968,1723535454629,-1427.21,0.00013799,2]
[334748969,1723535454638,-500.0,0.00013799,2]
[334748970,1723535454647,-500.0,0.00013799,2]
[334748971,1723535454656,-500.79700095,0.00013799,2]
[334748972,1723535454665,-500.0,0.00013799,2]
[334748973,1723535454674,-500.79078669,0.00013799,2]
[334748974,1723535454683,-500.0,0.00013799,2]
[334748975,1723535454692,-500.0,0.00013799,2]
[334748976,1723535454702,-500.0,0.00013799,2]
[334748977,1723535454711,-500.0,0.00013799,2]
[334748978,1723535454720,-500.0,0.00013799,2]
[334748979,1723535454729,-500.0,0.00013799,2]
[334748980,1723535454740,-2925.2,0.00013799,2]
[334748981,1723535454749,-500.0,0.00013799,2]
[334748982,1723535454759,-500.0,0.00013799,2]
[334748983,1723535454768,-500.0,0.00013799,2]
[334748984,1723535454777,-500.0,0.00013799,2]
[334748985,1723535454786,-500.0,0.00013799,2]
[334748986,1723535454796,-500.0,0.00013799,2]
[334748987,1723535454805,-732.87,0.00013799,2]
[334748988,1723535454814,-500.0,0.00013799,2]
[334748989,1723535454823,-513.10315991,0.00013799,2]
[334748990,1723535454832,-60532.8525899,0.000138,2]
[334748991,1723535454841,-27168.2037095,0.000138,2]
[334748992,1723535454850,-151.0,0.000138,2]
[334748993,1723535454860,-5200.0,0.000138,5]
[334748994,1723535454870,-228183.712085,0.000138,2]
[334748995,1723535454879,-3000.0,0.000138,2]
[334748996,1723535454889,-808.77,0.00013808,2]
[334748997,1723535454899,-235.60557884,0.00013825,2]
[334748998,1723535454908,-155.0,0.00013825,2]
[334748999,1723535454919,-155.0,0.00013859,2]
[334749000,1723535454928,-265.45661365,0.00013859,2]
[334749001,1723535454938,-16298.8365775,0.00013869,2]
[334749002,1723535454947,-454.48746689,0.00013896,2]
[334749003,1723535454957,-427.12194525,0.00013896,2]
[334749004,1723535454967,-169.54763546,0.00013896,2]
[334749005,1723535454976,-2145.43588228,0.00013899,2]
[334749006,1723535454986,-6900.0,0.000139,5]
[334749007,1723535454996,-96068.0388413,0.000139,2]
[334749008,1723535455006,-19213.6077682,0.00013932,2]
[334749009,1723535455016,-16298.8365775,0.00013951,2]
[334749010,1723535455025,-151.0,0.00013961,2]
[334749011,1723535455035,-500.0,0.00013972,2]
[334749012,1723535455044,-500.0,0.00013972,2]
[334749013,1723535455054,-500.0,0.00013972,2]
[334749014,1723535455063,-500.0,0.00013972,2]
[334749015,1723535455072,-771.68,0.00013972,2]
[334749016,1723535455082,-500.0,0.00013972,2]
[334749017,1723535455091,-524.71,0.00013973,2]
[334749018,1723535455101,-151.59,0.00013973,2]
[334749019,1723535455110,-172.58,0.00013973,2]
[334749020,1723535455120,-760.88,0.00013973,2]
[334749021,1723535455130,-267.36463336,0.00013979,2]
[334749022,1723535455139,-211.07994478,0.00013979,2]
[334749023,1723535455148,-16298.8365775,0.0001398,2]
[334749024,1723535455157,-19213.6077682,0.0001398,2]
[334749025,1723535455167,-155.0,0.00013986,2]
[334749026,1723535455176,-296.3219194,0.00013986,2]
[334749027,1723535455186,-16298.8365775,0.0001399,2]
[334749028,1723535455195,-19213.6077682,0.0001399,2]
[334749029,1723535455205,-16298.8365775,0.00013992,2]
[334749030,1723535455214,-19213.6077682,0.00013992,2]
[334749031,1723535455223,-81494.1828875,0.00013993,2]
[334749032,1723535455233,-76854.431073,0.00013993,2]
[334749033,1723535455243,-31196.93723714,0.00014,4]
[334749034,1723535455252,-650.0,0.00014,2]
[334749035,1723535455261,-173.772448,0.00014,2]
[334749036,1723535455270,-4173.1045496,0.00014,2]
[334749037,1723535455280,-1412.75,0.00014001,2]
[334749038,1723535455289,-500.0,0.00014001,2]
[334749039,1723535455298,-500.0,0.00014001,2]
[334749040,1723535455308,-500.0,0.00014001,2]
[334749041,1723535455317,-500.0,0.00014001,2]
[334749042,1723535455326,-500.0,0.00014001,2]
[334749043,1723535455336,-500.0,0.00014001,2]
[334749044,1723535455345,-500.0,0.00014001,2]
[334749045,1723535455354,-500.0,0.00014002,2]
[334749046,1723535455363,-252.79970336,0.00014002,2]
[334749047,1723535455372,-500.0,0.00014002,2]
[334749048,1723535455381,-500.0,0.00014002,2]
[334749049,1723535455391,-500.0,0.00014002,2]
[334749050,1723535455400,-500.0,0.00014002,2]
[334749051,1723535455409,-517.21671089,0.00014002,2]
[334749052,1723535455418,-500.0,0.00014002,2]
[334749053,1723535455427,-500.0,0.00014002,2]
[334749054,1723535455436,-500.0,0.00014002,2]
[334749055,1723535455446,-508.59,0.00014002,2]
[334749056,1723535455455,-337.60690344,0.00014002,2]
[334749057,1723535455464,-500.0,0.00014002,2]
[334749058,1723535455473,-516.63371725,0.00014002,2]
[334749059,1723535455482,-500.0,0.00014002,2]
[334749060,1723535455491,-500.0,0.00014002,2]
[334749061,1723535455500,-500.0,0.00014002,2]
[334749062,1723535455509,-500.0,0.00014002,2]
[334749063,1723535455519,-500.0,0.00014002,2]
[334749064,1723535455528,-500.0,0.00014002,2]
[334749065,1723535455543,-500.0,0.00014002,2]
[334749066,1723535455552,-500.0,0.00014002,2]
[334749067,1723535455562,-500.0,0.00014002,2]
[334749068,1723535455571,-500.0,0.00014002,2]
[334749069,1723535455581,-500.0,0.00014002,2]
[334749070,1723535455591,-500.0,0.00014002,2]
[334749071,1723535455600,-500.0,0.00014002,2]
[334749072,1723535455610,-500.0,0.00014002,2]
[334749073,1723535455619,-500.0,0.00014002,2]
[334749074,1723535455629,-500.0,0.00014002,2]
[334749075,1723535455638,-500.0,0.00014002,2]
[334749076,1723535455647,-511.08645576,0.00014002,2]
[334749077,1723535455656,-500.0,0.00014002,2]
[334749078,1723535455665,-500.0,0.00014002,2]
[334749079,1723535455675,-500.0,0.00014002,2]
[334749080,1723535455684,-500.0,0.00014002,2]
[334749081,1723535455696,-511.70230249,0.00014002,2]
[334749082,1723535455707,-623.67820746,0.00014002,2]
[334749083,1723535455717,-500.0,0.00014002,2]
[334749084,1723535455727,-500.0,0.00014002,2]
[334749085,1723535455738,-500.0,0.00014002,2]
[334749086,1723535455747,-500.0,0.00014002,2]
[334749087,1723535455757,-500.0,0.00014002,2]
[334749088,1723535455766,-500.0,0.00014002,2]
[334749089,1723535455775,-500.0,0.00014002,2]
[334749090,1723535455784,-500.0,0.00014002,2]
[334749091,1723535455793,-511.4363388,0.00014002,2]
[334749092,1723535455803,-565.96842975,0.00014002,2]
[334749093,1723535455975,-500.0,0.00014002,2]
[334749094,1723535455985,-513.63287244,0.00014002,2]
[334749095,1723535455994,-500.0,0.00014002,2]
[334749096,1723535456003,-500.0,0.00014002,2]
[334749097,1723535456013,-508.01036677,0.00014002,2]
[334749098,1723535456022,-500.0,0.00014002,2]
[334749099,1723535456032,-500.0,0.00014002,2]
[334749100,1723535456042,-500.0,0.00014002,2]
[334749101,1723535456051,-504.13341333,0.00014002,2]
[334749102,1723535456060,-500.0,0.00014002,2]
[334749103,1723535456070,-500.0,0.00014002,2]
[334749104,1723535456080,-500.0,0.00014002,2]
[334749105,1723535456089,-500.0,0.00014002,2]
[334749106,1723535456098,-500.0,0.00014002,2]
[334749107,1723535456108,-507.81784761,0.00014002,2]
[334749108,1723535456117,-500.0,0.00014002,2]
[334749109,1723535456126,-500.0,0.00014002,2]
[334749110,1723535456136,-500.0,0.00014002,2]
[334749111,1723535456145,-500.0,0.00014002,2]
[334749112,1723535456155,-500.0,0.00014002,2]
[334749113,1723535456164,-500.0,0.00014002,2]
[334749114,1723535456173,-500.0,0.00014002,2]
[334749115,1723535456182,-500.0,0.00014002,2]
[334749116,1723535456191,-504.20780028,0.00014002,2]
[334749117,1723535456201,-500.0,0.00014002,2]